bitfinex/quotes_BTCUSD_20251102
["timestamp","ask_amount","ask_price","bid_price","bid_amount"]
[1762071801290,5.38217757,110940.0,110930.0,0.01005569]
[1762071802286,5.47199658,110940.0,110930.0,0.01005569]
[1762071804380,5.38217757,110940.0,110930.0,0.01005569]
[1762071806290,5.43090468,110940.0,110930.0,0.01005569]
[1762071807143,5.42190468,110940.0,110930.0,0.01005569]
[1762071807562,5.22190468,110940.0,110930.0,0.01005569]
[1762071807825,4.26013926,110940.0,110930.0,0.01005569]
[1762071808085,5.42190468,110940.0,110930.0,0.01005569]
[1762071809699,5.34069283,110940.0,110930.0,0.01005569]
[1762071811598,5.38943821,110940.0,110930.0,0.01005569]
[1762071812213,5.39843821,110940.0,110930.0,0.01005569]
[1762071814273,5.34969283,110940.0,110930.0,0.01005569]
[1762071814484,5.01018232,110940.0,110930.0,0.01005569]
[1762071817702,5.02432491,110940.0,110930.0,0.01005569]
[1762071817905,5.01018232,110940.0,110930.0,0.01005569]
[1762071818847,0.64539443,110940.0,110930.0,0.01005569]
[1762071819085,0.31367215,110940.0,110930.0,0.14267569]
[1762071819296,1.07341881,110940.0,110930.0,0.14267569]
[1762071819509,1.10235881,110940.0,110930.0,0.16977724]
[1762071819935,1.10235881,110940.0,110930.0,0.13692724]
[1762071819936,1.04448938,110940.0,110930.0,0.13692724]
[1762071820148,1.08554938,110940.0,110930.0,0.13692724]
[1762071820331,1.08754938,110940.0,110930.0,0.13792724]
[1762071820893,1.08654938,110940.0,110930.0,0.13192724]
[1762071821166,1.08654938,110940.0,110930.0,0.13792724]
[1762071821371,1.08754938,110940.0,110930.0,0.13792724]
[1762071821576,0.70029424,110940.0,110930.0,0.13792724]
[1762071821783,1.08754938,110940.0,110930.0,0.13792724]
[1762071822219,1.17323938,110940.0,110930.0,0.13792724]
[1762071824233,1.56049452,110940.0,110930.0,0.13792724]
[1762071825486,0.70029424,110940.0,110930.0,0.13792724]
[1762071825687,1.56049452,110940.0,110930.0,0.13792724]
[1762071826907,0.70029424,110940.0,110930.0,0.13792724]
[1762071827114,1.08754938,110940.0,110930.0,0.13792724]
[1762071828466,0.70029424,110940.0,110930.0,0.13792724]
[1762071828665,1.08754938,110940.0,110930.0,0.13792724]
[1762071828880,0.70029424,110940.0,110930.0,0.13792724]
[1762071829093,1.06318266,110940.0,110930.0,0.13792724]
[1762071830568,0.58847875,110940.0,110930.0,0.13792724]
[1762071830779,0.58847875,110940.0,110930.0,0.31822111]
[1762071830985,0.97573389,110940.0,110930.0,0.13792724]
[1762071831192,0.98987533,110940.0,110930.0,0.13792724]
[1762071831442,0.97473389,110940.0,110930.0,0.31222111]
[1762071831859,0.97573389,110940.0,110930.0,0.31822111]
[1762071832282,0.95883709,110940.0,110930.0,0.31822111]
[1762071832719,0.56958195,110940.0,110930.0,0.31722111]
[1762071832932,0.95683709,110940.0,110930.0,0.31722111]
[1762071833349,0.95783709,110940.0,110930.0,0.32722111]
[1762071833999,0.57058195,110940.0,110930.0,0.32722111]
[1762071834202,0.95783709,110940.0,110930.0,0.32722111]
[1762071834615,0.97197831,110940.0,110930.0,0.32722111]
[1762071835934,0.93835801,110940.0,110930.0,0.32722111]
[1762071836365,0.55110287,110940.0,110930.0,0.32722111]
[1762071837151,0.57056103,110940.0,110930.0,0.32722111]
[1762071838193,0.55110287,110940.0,110930.0,0.32722111]
[1762071844188,0.93835801,110940.0,110930.0,0.32722111]
[1762071844345,0.95782063,110940.0,110930.0,0.14692724]
[1762071848152,0.95782063,110940.0,110930.0,0.32722111]
[1762071848576,1.34507577,110940.0,110930.0,0.32722111]
[1762071849218,1.34507577,110940.0,110930.0,0.14692724]
[1762071849648,1.34507577,110940.0,110930.0,0.32722111]
[1762071850076,1.34507577,110940.0,110930.0,0.14692724]
[1762071851331,1.36199239,110940.0,110930.0,0.14692724]
[1762071851585,1.36199239,110940.0,110930.0,0.11982569]
[1762071851805,1.38909267,110940.0,110930.0,0.11982569]
[1762071852035,1.38909267,110940.0,110930.0,0.30011956]
[1762071852249,1.00183753,110940.0,110930.0,0.30011956]
[1762071854448,0.98492091,110940.0,110930.0,0.30011956]
[1762071855280,1.0018409,110940.0,110930.0,0.30011956]
[1762071855489,1.0015526,110940.0,110930.0,0.30011956]
[1762071855696,1.00155284,110940.0,110930.0,0.30011956]
[1762071856977,0.99244997,110940.0,110930.0,0.11982569]
[1762071857407,1.00091129,110940.0,110930.0,0.11982569]
[1762071858245,1.38787813,110940.0,110930.0,0.11982569]
[1762071858900,1.41224485,110940.0,110930.0,0.11982569]
[1762071859136,1.03436199,110940.0,110930.0,0.11982569]
[1762071859564,1.42132883,110940.0,110930.0,0.11982569]
[1762071860933,1.42133117,110940.0,110930.0,0.11982569]
[1762071862444,1.42133117,110940.0,110930.0,0.16294569]
[1762071864637,1.43547321,110940.0,110930.0,0.16294569]
[1762071865257,1.61575083,110940.0,110930.0,0.16294569]
[1762071865678,1.60160879,110940.0,110930.0,0.16294569]
[1762071868652,1.61575092,110940.0,110930.0,0.16294569]
[1762071868862,1.4354733,110940.0,110930.0,0.16294569]
[1762071869977,1.4354733,110940.0,110930.0,0.14880356]
[1762071870166,1.80220107,110940.0,110930.0,0.016]
[1762071870433,5.4164629,110940.0,110930.0,0.016]
[1762071870678,5.06198758,110940.0,110930.0,0.016]
[1762071870907,5.02132586,110940.0,110930.0,0.016]
[1762071871130,5.45603733,110940.0,110930.0,0.006]
[1762071871356,5.45603733,110940.0,110930.0,0.009]
[1762071871357,5.45603233,110940.0,110930.0,0.009]
[1762071872046,5.45503233,110940.0,110930.0,0.003]
[1762071872251,5.45603233,110940.0,110930.0,0.004]
[1762071872445,5.45503233,110940.0,110930.0,0.003]
[1762071872664,0.19029386,110930.0,110920.0,0.0004]
[1762071872888,4.13978957,110930.0,110920.0,0.00044836]
[1762071873107,4.15925219,110930.0,110920.0,0.00044836]
[1762071873320,4.20050459,110930.0,110920.0,0.00066698]
[1762071873749,4.20050459,110930.0,110920.0,0.00466698]
[1762071873963,4.20150459,110930.0,110920.0,0.00566698]
[1762071874385,4.18736021,110930.0,110920.0,0.00566698]
[1762071877419,3.80039337,110930.0,110920.0,0.00566698]
[1762071877622,3.77603523,110930.0,110920.0,0.00566698]
[1762071877820,3.79017908,110930.0,110920.0,0.00566698]
[1762071878235,3.76479519,110930.0,110920.0,0.00566698]
[1762071879216,3.7732459,110930.0,110920.0,0.00566698]
[1762071880271,3.77324587,110930.0,110920.0,0.00566698]
[1762071880958,3.81450597,110930.0,110920.0,0.00566698]
[1762071881185,4.52732896,110930.0,110920.0,0.00566698]
[1762071888179,4.11600398,110930.0,110920.0,0.00566698]
[1762071888381,4.14036212,110930.0,110920.0,0.00566698]
[1762071888997,4.52732896,110930.0,110920.0,0.00566698]
[1762071890091,4.14036212,110930.0,110920.0,0.00566698]
[1762071890502,0.34,110910.0,110900.0,0.10999955]
[1762071890711,0.34,110910.0,110900.0,0.11004791]
[1762071890712,0.72696684,110910.0,110900.0,0.11004791]
[1762071890915,0.72696684,110910.0,110900.0,0.15906791]
[1762071891142,0.76821975,110910.0,110900.0,0.15906791]
[1762071891740,0.76921975,110910.0,110900.0,0.17006791]
[1762071892589,0.77021975,110910.0,110900.0,0.17506791]
[1762071893045,0.77021975,110910.0,110900.0,0.35541056]
[1762071894098,0.77021975,110910.0,110900.0,0.3412632]
[1762071894443,0.75607486,110910.0,110900.0,0.3412632]
[1762071895537,0.75607486,110910.0,110900.0,0.16092055]
[1762071895777,0.75607486,110910.0,110900.0,0.3412632]
[1762071895979,0.75607486,110910.0,110900.0,0.16092055]
[1762071896230,0.75607486,110910.0,110900.0,0.16135787]
[1762071897050,0.77556286,110910.0,110900.0,0.16135787]
[1762071897465,0.77556286,110910.0,110900.0,0.34170052]
[1762071897903,0.38859602,110910.0,110900.0,0.34170052]
[1762071898250,0.04859602,110910.0,110900.0,0.34170052]
[1762071898454,0.002,110910.0,110900.0,0.34170052]
[1762071903564,0.38896684,110910.0,110900.0,0.34170052]
[1762071903784,0.40845484,110910.0,110900.0,0.34170052]
[1762071904020,0.021488,110910.0,110900.0,0.34170052]
[1762071904237,0.38896684,110910.0,110900.0,0.34170052]
[1762071904457,0.40845484,110910.0,110900.0,0.34170052]
[1762071906233,0.40845484,110910.0,110900.0,0.16135787]
[1762071907600,0.79542168,110910.0,110900.0,0.16135787]
[1762071907815,0.84320168,110910.0,110900.0,0.08650787]
[1762071908026,0.48334268,110910.0,110900.0,0.08650787]
[1762071908456,0.43556268,110910.0,110900.0,0.33411052]
[1762071908684,0.44970982,110910.0,110900.0,0.15376787]
[1762071909581,0.49748982,110910.0,110900.0,0.08650787]
[1762071909796,0.47038198,110910.0,110900.0,0.08650787]
[1762071911331,0.50662198,110910.0,110900.0,0.08650787]
[1762071911549,0.45884198,110910.0,110900.0,0.26685052]
[1762071911761,0.42260198,110910.0,110900.0,0.33411052]
[1762071912406,0.40845484,110910.0,110900.0,0.15376787]
[1762071915943,0.021488,110910.0,110900.0,0.33411052]
[1762071916151,0.38896684,110910.0,110900.0,0.33411052]
[1762071916358,0.40845484,110910.0,110900.0,0.33411052]
[1762071916984,0.40845484,110910.0,110900.0,0.15376787]
[1762071917200,0.40845484,110910.0,110900.0,0.33411052]
[1762071917413,0.40871594,110910.0,110900.0,0.33411052]
[1762071921309,0.40871594,110910.0,110900.0,0.15376787]
[1762071923629,0.40871594,110910.0,110900.0,0.33411052]
[1762071924490,0.40871594,110910.0,110900.0,0.15376787]
[1762071924667,0.42563955,110910.0,110900.0,0.15376787]
[1762071926311,0.81286749,110910.0,110900.0,0.15376787]
[1762071926530,0.42563955,110910.0,110900.0,0.15376787]
[1762071927047,0.42563955,110910.0,110900.0,0.33411052]
[1762071927514,0.47172955,110910.0,110900.0,0.08650787]
[1762071928034,0.47172955,110910.0,110900.0,0.33377052]
[1762071928240,0.47172955,110910.0,110900.0,0.15342787]
[1762071928790,0.48019485,110910.0,110900.0,0.15342787]
[1762071929468,0.48019485,110910.0,110900.0,0.33377052]
[1762071929702,0.04687691,110910.0,110900.0,0.33377052]
[1762071929917,0.40615155,110910.0,110900.0,0.33377052]
[1762071930127,0.42563955,110910.0,110900.0,0.33377052]
[1762071930556,0.42563955,110910.0,110900.0,0.31962315]
[1762071935733,0.42563955,110910.0,110900.0,0.1392805]
[1762071935947,0.43410702,110910.0,110900.0,0.0723605]
[1762071936157,0.47894702,110910.0,110900.0,0.0723605]
[1762071937056,0.43410702,110910.0,110900.0,0.31942315]
[1762071937882,0.42563955,110910.0,110900.0,0.31942315]
[1762071941770,0.03841161,110910.0,110900.0,0.31942315]
[1762071941987,0.01614716,110910.0,110900.0,0.31942315]
[1762071942200,0.01614716,110910.0,110900.0,1.18468493]
[1762071942621,0.01614716,110910.0,110900.0,0.79745699]
[1762071943038,0.01614716,110910.0,110900.0,1.18468493]
[1762071943889,0.002,110910.0,110900.0,1.18468493]
[1762071944370,0.001,110910.0,110900.0,1.17368493]
[1762071944593,0.38722794,110930.0,110920.0,0.18029691]
[1762071944996,0.43209478,110930.0,110920.0,0.23068792]
[1762071945197,0.43209478,110930.0,110920.0,0.32162691]
[1762071945382,0.4320915,110930.0,110920.0,0.32162691]
[1762071945826,0.4330915,110930.0,110920.0,0.32362691]
[1762071946360,0.4390915,110930.0,110920.0,0.32362691]
[1762071947605,0.46344964,110930.0,110920.0,0.32364013]
[1762071949439,0.4390915,110930.0,110920.0,0.32364013]
[1762071951497,0.4390915,110930.0,110920.0,0.30949427]
[1762071951699,0.4390915,110930.0,110920.0,0.30159427]
[1762071951918,0.4390915,110930.0,110920.0,0.29535427]
[1762071952289,0.4390915,110930.0,110920.0,0.29406427]
[1762071956514,0.43907542,110930.0,110920.0,0.29406427]
[1762071956692,0.04339432,110930.0,110920.0,0.38487017]
[1762071956892,0.02390632,110930.0,110920.0,0.38487017]
[1762071957098,0.007,110930.0,110920.0,0.77209811]
[1762071957340,0.007,110930.0,110920.0,0.38487017]
[1762071960288,0.007,110930.0,110920.0,0.77209811]
[1762071961058,0.007,110930.0,110920.0,0.77009811]
[1762071961263,0.006,110930.0,110920.0,0.77009811]
[1762071961510,0.00081631,110940.0,110930.0,0.18029387]
[1762071961663,0.00081631,110940.0,110930.0,0.26704325]
[1762071961895,0.00081631,110940.0,110930.0,0.63624181]
[1762071962749,0.00081631,110940.0,110930.0,0.64224181]
[1762071963157,0.00081631,110940.0,110930.0,0.25501387]
[1762071963944,0.00081631,110940.0,110930.0,0.64224181]
[1762071964147,0.00181631,110940.0,110930.0,0.64424181]
[1762071964355,0.00181631,110940.0,110930.0,0.25701387]
[1762071973481,0.38904425,110940.0,110930.0,0.25701387]
[1762071976573,0.00181631,110940.0,110930.0,0.25701387]
[1762071976783,0.38904425,110940.0,110930.0,0.25701387]
[1762071977403,0.00181631,110940.0,110930.0,0.25701387]
[1762071986029,0.47286054,110970.0,110960.0,0.18024513]
[1762071986030,0.02429229,110970.0,110960.0,0.18024513]
[1762071986250,0.06496948,110990.0,110980.0,0.18021265]
[1762071986251,0.02429229,110990.0,110980.0,0.18021265]
[1762071986493,0.02536369,110990.0,110980.0,0.07168126]
[1762071987128,0.02259517,110990.0,110980.0,0.23387265]
[1762071987341,0.02273996,110990.0,110980.0,0.23287265]
[1762071988178,0.0152854,110990.0,110980.0,0.05366]
[1762071988386,0.0152854,110990.0,110980.0,0.07168126]
[1762071988592,0.41065395,110990.0,110980.0,0.07168126]
[1762071988803,0.02372222,110990.0,110980.0,0.05366]
[1762071990672,0.02372222,110990.0,110980.0,0.07168126]
[1762071991079,0.20391863,110990.0,110980.0,0.05366]
[1762071991504,0.60770748,110990.0,110980.0,0.02683]
[1762071991715,0.64739748,110990.0,110980.0,0.02683]
[1762071991929,0.67448403,110990.0,110980.0,0.02683]
[1762071992136,0.67557628,110990.0,110980.0,0.02683]
[1762071992344,0.63588628,110990.0,110980.0,0.05266]
[1762071992549,0.61902916,110990.0,110980.0,0.05266]
[1762071994010,0.43883275,110990.0,110980.0,0.05266]
[1762071995255,0.43883275,110990.0,110980.0,0.23287265]
[1762071995701,0.43039593,110990.0,110980.0,0.23287265]
[1762071995879,0.43841467,110990.0,110980.0,0.23287265]
[1762071998036,0.41132812,110990.0,110980.0,0.23287265]
[1762071998879,0.43841467,110990.0,110980.0,0.23287265]
[1762071999099,0.05148294,110990.0,110980.0,0.23287265]
[1762072000164,0.01637765,110990.0,110980.0,0.23287265]
[1762072000371,0.01637765,110990.0,110980.0,0.61980438]
[1762072001166,0.01637765,110990.0,110980.0,0.64688472]
[1762072001772,0.00223704,110990.0,110980.0,0.64688472]
[1762072002149,0.00223704,110990.0,110980.0,0.61980438]
[1762072003329,0.00223704,110990.0,110980.0,0.25995299]
[1762072003529,0.00223704,110990.0,110980.0,0.23287265]
[1762072003975,0.00223704,110990.0,110980.0,0.61980438]
[1762072005392,0.00223704,110990.0,110980.0,0.64688365]
[1762072006648,0.00123704,110990.0,110980.0,0.64588365]
[1762072006795,0.00123704,110990.0,110980.0,0.64688365]
[1762072007000,0.00223704,110990.0,110980.0,0.64688365]
[1762072007207,0.00123704,110990.0,110980.0,0.64588365]
[1762072007409,0.00123704,110990.0,110980.0,0.65488365]
[1762072007614,0.00223704,110990.0,110980.0,0.65488365]
[1762072008995,0.54191007,111000.0,110990.0,0.56712814]
[1762072009226,0.54191007,111000.0,110990.0,0.73542404]
[1762072009643,0.54212845,111000.0,110990.0,0.76249962]
[1762072010294,0.54212845,111000.0,110990.0,0.76349962]
[1762072010722,0.54212845,111000.0,110990.0,0.76649962]
[1762072011733,0.54212845,111000.0,110990.0,0.37956789]
[1762072011969,0.54212845,111000.0,110990.0,0.76649962]
[1762072021056,0.04464843,111000.0,110990.0,0.76649962]
[1762072021259,0.01433283,111030.0,111020.0,0.18014772]
[1762072021460,0.03906674,111030.0,111020.0,0.30853839]
[1762072021743,0.02493391,111030.0,111020.0,0.29596112]
[1762072022957,0.02993391,111030.0,111020.0,0.29696112]
[1762072023182,0.02493391,111030.0,111020.0,0.29596112]
[1762072023594,0.03493391,111030.0,111020.0,0.29596112]
[1762072024009,0.02593391,111030.0,111020.0,0.29596112]
[1762072024457,0.02793391,111030.0,111020.0,0.29596112]
[1762072027021,0.02858884,111030.0,111020.0,0.20515522]
[1762072027216,0.41552853,111030.0,111020.0,0.21928772]
[1762072028101,0.0285968,111030.0,111020.0,0.21928772]
[1762072029475,0.05288909,111030.0,111020.0,0.21928772]
[1762072031147,0.08537561,111030.0,111020.0,0.21928772]
[1762072031545,0.47230734,111030.0,111020.0,0.21928772]
[1762072031905,0.4993823,111030.0,111020.0,0.21928772]
[1762072032093,0.47230734,111030.0,111020.0,0.21928772]
[1762072032481,0.08537561,111030.0,111020.0,0.21928772]
[1762072034465,0.06108332,111030.0,111020.0,0.21928772]
[1762072037322,0.4474117,111030.0,111020.0,0.21928772]
[1762072041993,0.66430319,111030.0,111020.0,0.01957]
[1762072042246,1.00690471,111030.0,111010.0,0.18016305]
[1762072042445,0.41068289,111020.0,111010.0,0.18016305]
[1762072042648,0.4353778,111020.0,111010.0,0.19973305]
[1762072042861,0.46786432,111020.0,111010.0,0.21917305]
[1762072043073,0.4353778,111020.0,111010.0,0.21917305]
[1762072043713,0.4353778,111020.0,111010.0,0.22017305]
[1762072044351,0.4353778,111020.0,111010.0,0.22117305]
[1762072044784,0.46786432,111020.0,111010.0,0.22117305]
[1762072044992,0.4353778,111020.0,111010.0,0.22117305]
[1762072045617,0.4353778,111020.0,111010.0,0.22017305]
[1762072046040,0.4403778,111020.0,111010.0,0.22017305]
[1762072046458,0.4403778,111020.0,111010.0,0.21917305]
[1762072046872,0.4433778,111020.0,111010.0,0.22017305]
[1762072049731,0.89746618,111020.0,111010.0,0.02044]
[1762072050222,0.95703197,111020.0,111010.0,0.02044]
[1762072050520,0.95703197,111020.0,111010.0,0.20060394]
[1762072052141,3.93267746,111020.0,111010.0,0.02044]
[1762072052340,4.01261138,111020.0,111010.0,0.20060394]
[1762072052920,3.95702138,111020.0,111010.0,0.20060394]
[1762072053323,4.58879366,111020.0,111010.0,0.001]
[1762072053739,4.58879366,111020.0,111010.0,0.18116394]
[1762072053940,4.53320366,111020.0,111010.0,0.20016394]
[1762072054147,1.53320366,111020.0,111010.0,0.20016394]
[1762072054551,4.71335138,111020.0,111010.0,0.02]
[1762072054794,4.53320366,111020.0,111010.0,0.20016394]
[1762072055077,4.58879366,111020.0,111010.0,0.20016394]
[1762072055924,1.58879366,111020.0,111010.0,0.20016394]
[1762072056341,1.76894138,111020.0,111010.0,0.001]
[1762072056577,1.58879366,111020.0,111010.0,0.18116394]
[1762072057665,5.15526976,111020.0,111010.0,0.001]
[1762072057869,5.15526379,111020.0,111010.0,0.001]
[1762072058128,5.13092584,111020.0,111010.0,0.001]
[1762072060534,5.17967047,111020.0,111010.0,0.001]
[1762072061966,5.56599885,111020.0,111010.0,0.001]
[1762072062311,5.18067047,111020.0,111010.0,0.001]
[1762072062530,5.17967047,111020.0,111010.0,0.001]
[1762072062716,5.34718395,111020.0,111010.0,0.001]
[1762072062914,5.34818395,111020.0,111010.0,0.001]
[1762072063116,5.29843932,111020.0,111010.0,0.001]
[1762072063345,5.34809958,111020.0,111010.0,0.001]
[1762072064295,5.34309958,111020.0,111010.0,0.001]
[1762072064758,5.35509958,111020.0,111010.0,0.001]
[1762072065671,0.55636246,111000.0,110990.0,0.02583]
[1762072065877,4.44536041,111000.0,110990.0,0.04483]
[1762072066523,4.47244579,111000.0,110990.0,0.04483]
[1762072067160,4.47444579,111000.0,110990.0,0.04583]
[1762072067710,4.47444579,111000.0,110990.0,0.22602641]
[1762072067912,4.47444579,111000.0,110990.0,0.04583]
[1762072068744,4.86077417,111000.0,110990.0,0.04583]
[1762072068917,4.91636417,111000.0,110990.0,0.04583]
[1762072069122,4.91636417,111000.0,110990.0,0.02683]
[1762072071120,4.9162737,111000.0,110990.0,0.02683]
[1762072074259,4.9162737,111000.0,110990.0,0.04583]
[1762072078640,4.93041071,111000.0,110990.0,0.04583]
[1762072079368,4.93041071,111000.0,110990.0,0.02683]
[1762072079827,5.13041071,111000.0,110990.0,0.001]
[1762072080052,5.1162737,111000.0,110990.0,0.001]
[1762072080559,5.51070972,111000.0,110990.0,0.001]
[1762072080797,6.51059616,111000.0,110990.0,0.001]
[1762072081525,0.56637868,110990.0,110980.0,0.00081585]
[1762072081755,4.94748867,110990.0,110980.0,0.00081585]
[1762072082230,4.9421515,110990.0,110980.0,0.00081585]
[1762072082444,4.97457172,110990.0,110980.0,0.00081585]
[1762072083059,4.99371247,110990.0,110980.0,0.00181585]
[1762072083684,5.00371247,110990.0,110980.0,0.00181585]
[1762072085754,4.97129225,110990.0,110980.0,0.00181585]
[1762072087599,5.06111126,110990.0,110980.0,0.00181585]
[1762072088913,4.97129225,110990.0,110980.0,0.00181585]
[1762072089335,4.97126891,110990.0,110980.0,0.00181585]
[1762072094570,4.95712816,110990.0,110980.0,0.00181585]
[1762072095973,4.94712817,110990.0,110980.0,0.00181585]
[1762072097485,4.56191847,110990.0,110980.0,0.00181585]
[1762072099363,4.56091847,110990.0,110980.0,0.00181585]
[1762072099540,4.5933112,110990.0,110980.0,0.00181585]
[1762072100498,4.56091847,110990.0,110980.0,0.00181585]
[1762072100704,4.5943142,110990.0,110980.0,0.00181585]
[1762072100990,4.56091847,110990.0,110980.0,0.00181585]
[1762072101269,4.56178217,110990.0,110980.0,0.00181585]
[1762072101996,4.56078217,110990.0,110980.0,0.00181585]
[1762072102985,4.56178217,110990.0,110980.0,0.00181585]
[1762072103374,4.56078217,110990.0,110980.0,0.00181585]
[1762072106024,4.56178217,110990.0,110980.0,0.00181585]
[1762072107022,4.56078217,110990.0,110980.0,0.00181585]
[1762072107227,4.56178217,110990.0,110980.0,0.00181585]
[1762072107447,4.51313593,110990.0,110980.0,0.00181585]
[1762072109578,4.57810541,110990.0,110980.0,0.00181585]
[1762072110557,4.57802899,110990.0,110980.0,0.00181585]
[1762072111293,4.57702899,110990.0,110980.0,0.00181585]
[1762072111471,4.57802899,110990.0,110980.0,0.00181585]
[1762072111882,4.57702899,110990.0,110980.0,0.00181585]
[1762072112105,4.57802899,110990.0,110980.0,0.00181585]
[1762072113247,4.57702899,110990.0,110980.0,0.00181585]
[1762072114272,4.57802899,110990.0,110980.0,0.00181585]
[1762072114483,4.57702899,110990.0,110980.0,0.00181585]
[1762072114621,4.57802899,110990.0,110980.0,0.00181585]
[1762072115232,4.57702899,110990.0,110980.0,0.00181585]
[1762072115445,4.56115664,110990.0,110980.0,0.00181585]
[1762072115680,4.57808542,110990.0,110980.0,0.00181585]
[1762072115898,4.57708542,110990.0,110980.0,0.00181585]
[1762072118394,4.51211594,110990.0,110980.0,0.00181585]
[1762072119322,4.56086077,110990.0,110980.0,0.00181585]
[1762072119536,4.17397305,110990.0,110980.0,0.00181585]
[1762072120990,4.56086077,110990.0,110980.0,0.00181585]
[1762072122822,4.56086077,110990.0,110980.0,0.00845585]
[1762072122823,4.14007294,110990.0,110980.0,0.00845585]
[1762072123036,1.09823521,110990.0,110980.0,0.1886685]
[1762072123255,1.06177521,110990.0,110980.0,0.1886685]
[1762072123688,0.86177521,110990.0,110980.0,0.1953085]
[1762072123907,1.08613277,110990.0,110980.0,0.1953085]
[1762072124122,1.05903912,110990.0,110980.0,0.1953085]
[1762072124600,1.01655202,110990.0,110980.0,0.1886685]
[1762072125412,1.01655202,110990.0,110980.0,0.1906685]
[1762072125666,1.01655202,110990.0,110980.0,0.1973085]
[1762072125851,1.01152077,110990.0,110980.0,0.1963085]
[1762072126091,0.81152077,110990.0,110980.0,0.18216892]
[1762072126309,0.81152077,110990.0,110980.0,0.18516892]
[1762072126310,0.7712594,110990.0,110980.0,0.18516892]
[1762072126722,0.76407,110990.0,110980.0,0.18516892]
[1762072131516,0.37718228,110990.0,110980.0,0.18516892]
[1762072131944,0.03718228,110990.0,110980.0,0.18516892]
[1762072133197,0.42407,110990.0,110980.0,0.18516892]
[1762072134363,0.001,110990.0,110980.0,0.18516892]
[1762072134583,0.001,110990.0,110980.0,0.27597482]
[1762072135519,0.0151382,110990.0,110980.0,0.27597482]
[1762072136490,0.001,110990.0,110980.0,0.27597482]
[1762072138778,0.43228834,111010.0,110990.0,0.18019641]
[1762072139004,0.77228834,111010.0,111000.0,0.18018018]
[1762072139477,0.77228834,111010.0,111000.0,0.16604276]
[1762072140159,0.77228834,111010.0,111000.0,0.16904276]
[1762072140394,0.77328834,111010.0,111000.0,0.16904276]
[1762072140618,0.77328834,111010.0,111000.0,0.18318018]
[1762072141466,0.95345228,111010.0,111000.0,0.18318018]
[1762072141690,0.98675228,111010.0,111000.0,0.003]
[1762072142168,1.01092228,111010.0,111000.0,0.003]
[1762072142861,1.01092228,111010.0,111000.0,0.18318018]
[1762072143682,1.01092228,111010.0,111000.0,0.003]
[1762072143883,1.01092228,111010.0,111000.0,0.18318018]
[1762072144904,1.01092228,111010.0,111000.0,0.003]
[1762072145123,1.06680186,111010.0,111000.0,0.003]
[1762072145738,1.4813868,111010.0,111000.0,0.003]
[1762072145973,1.45368958,111010.0,111000.0,0.003]
[1762072147316,1.47054992,111010.0,111000.0,0.003]
[1762072148256,1.49490748,111010.0,111000.0,0.003]
[1762072152079,4.52739458,111010.0,111000.0,0.003]
[1762072152292,4.55632562,111010.0,111000.0,0.003]
[1762072152474,4.52739458,111010.0,111000.0,0.003]
[1762072153881,3.64743914,111010.0,111000.0,0.003]
[1762072154095,1.03513976,111010.0,111000.0,0.003]
[1762072154296,1.00183976,111010.0,111000.0,0.003]
[1762072154656,1.00183976,111010.0,111000.0,0.18318018]
[1762072154913,1.03513976,111010.0,111000.0,0.18318018]
[1762072155121,1.00183976,111010.0,111000.0,0.18318018]
[1762072155365,0.79731826,111010.0,111000.0,0.18318018]
[1762072156294,0.9774822,111010.0,111000.0,0.18318018]
[1762072158251,0.9774822,111010.0,111000.0,0.16904253]
[1762072158627,0.9774822,111010.0,110990.0,0.18019523]
[1762072158828,0.9774822,111010.0,111000.0,0.18018018]
[1762072159403,0.97612016,111010.0,111000.0,0.18018018]
[1762072159625,1.00047772,111010.0,110990.0,0.18119523]
[1762072159841,0.38652568,111000.0,110990.0,0.18219523]
[1762072160452,0.39371594,111000.0,110990.0,0.18219523]
[1762072161135,0.39371594,111000.0,110990.0,0.18019523]
[1762072162022,1.04780881,111000.0,110990.0,0.002]
[1762072162151,1.14504637,111000.0,110990.0,0.18519641]
[1762072162374,1.09633637,111000.0,110990.0,0.18519641]
[1762072163339,0.91615619,111000.0,110990.0,0.18519641]
[1762072163553,0.83432863,111000.0,110990.0,0.18519641]
[1762072164118,1.01450881,111000.0,110990.0,0.18519641]
[1762072164534,1.03886637,111000.0,110990.0,0.18519641]
[1762072165153,1.03886637,111000.0,110990.0,0.005]
[1762072165565,1.03886637,111000.0,110990.0,0.18519641]
[1762072166009,1.37886637,111000.0,110990.0,0.005]
[1762072166177,1.43337637,111000.0,110990.0,0.005]
[1762072166773,1.48071637,111000.0,110990.0,0.005]
[1762072168851,1.43337637,111000.0,110990.0,0.18519641]
[1762072169216,1.40195637,111000.0,110990.0,0.18519641]
[1762072169419,1.37886637,111000.0,110990.0,0.18519641]
[1762072170458,1.33760408,111000.0,110990.0,0.005]
[1762072171073,1.36691408,111000.0,110990.0,0.005]
[1762072176029,1.38950408,111000.0,110990.0,0.005]
[1762072176505,1.43487408,111000.0,110990.0,0.005]
[1762072178649,4.65178119,111000.0,110990.0,0.005]
[1762072178851,4.67613875,111000.0,110990.0,0.005]
[1762072180449,5.06266443,111000.0,110990.0,0.005]
[1762072181694,5.06166443,111000.0,110990.0,0.003]
[1762072182208,5.06466443,111000.0,110990.0,0.004]
[1762072182390,5.06466443,111000.0,110990.0,0.001]
[1762072182832,5.06766443,111000.0,110990.0,0.001]
[1762072187403,4.68113875,111000.0,110990.0,0.001]
[1762072188757,4.6952776,111000.0,110990.0,0.001]
[1762072191063,3.92222624,111000.0,110990.0,0.001]
[1762072191199,4.6952776,111000.0,110990.0,0.001]
[1762072193538,3.92222624,111000.0,110990.0,0.18119641]
[1762072193746,4.6952776,111000.0,110990.0,0.18119641]
[1762072194059,4.6952776,111000.0,110990.0,0.001]
[1762072194274,1.6952776,111000.0,110990.0,0.001]
[1762072194691,1.6952776,111000.0,110990.0,0.18119641]
[1762072195127,1.6952776,111000.0,110990.0,0.16705689]
[1762072195338,1.68113875,111000.0,110990.0,0.16705689]
[1762072195895,1.68114715,111000.0,110990.0,0.16705689]
[1762072196330,0.34,110990.0,110980.0,0.18021194]
[1762072196559,0.72652568,110990.0,110980.0,0.18021194]
[1762072197405,0.34,110990.0,110980.0,0.18021194]
[1762072197586,0.72652568,110990.0,110980.0,0.18021194]
[1762072197916,0.72752568,110990.0,110980.0,0.18221194]
[1762072198390,0.7416652,110990.0,110980.0,0.18221194]
[1762072201292,0.74886068,110990.0,110980.0,0.18221194]
[1762072203652,0.92905709,110990.0,110980.0,0.18221194]
[1762072203815,0.74886068,110990.0,110980.0,0.18221194]
[1762072205153,0.7683485,110990.0,110980.0,0.18221194]
[1762072205356,0.37462734,110990.0,110980.0,0.18221194]
[1762072205566,0.37462734,110990.0,110980.0,0.27301784]
[1762072207520,0.76115302,110990.0,110980.0,0.27301784]
[1762072209122,0.37462734,110990.0,110980.0,0.27301784]
[1762072212749,0.02048782,110990.0,110980.0,0.27301784]